[Event "Late-Titled-Tuesday-Blitz-May-28-2024"]
[Site "Chess.com"]
[Date "2024.05.28"]
[Round "8"]
[White "Engima32"]
[Black "FredddieCroderg"]
[Result "0-1"]
[WhiteElo "2455"]
[BlackElo "2316"]
[TimeControl "180+1"]
[EndTime "15:28:15 PDT"]
[Termination "FredddieCroderg won by resignation"]

1. Nf3 {[%clk 0:02:59.9]} 1... Nf6 {[%clk 0:02:55]} 2. g3 {[%clk 0:02:59.8]}
2... d5 {[%clk 0:02:52.6]} 3. Bg2 {[%clk 0:02:59.7]} 3... c5 {[%clk 0:02:52]} 4.
O-O {[%clk 0:02:59.1]} 4... Nc6 {[%clk 0:02:51.3]} 5. d4 {[%clk 0:02:58.6]} 5...
cxd4 {[%clk 0:02:48.6]} 6. Nxd4 {[%clk 0:02:59.5]} 6... e6 {[%clk 0:02:46.4]} 7.
Nxc6 {[%clk 0:02:59.8]} 7... bxc6 {[%clk 0:02:45.7]} 8. c4 {[%clk 0:03:00.5]}
8... Be7 {[%clk 0:02:44.5]} 9. Nc3 {[%clk 0:03:01.1]} 9... O-O {[%clk 0:02:44]}
10. e4 {[%clk 0:02:53.6]} 10... Ba6 {[%clk 0:02:42.4]} 11. exd5 {[%clk
0:02:51.3]} 11... cxd5 {[%clk 0:02:41.3]} 12. b3 {[%clk 0:02:22.6]} 12... dxc4
{[%clk 0:02:40.3]} 13. Bxa8 {[%clk 0:02:21.1]} 13... Qxa8 {[%clk 0:02:39.7]} 14.
Re1 {[%clk 0:02:20.5]} 14... cxb3 {[%clk 0:02:33.8]} 15. axb3 {[%clk 0:02:19.4]}
15... Bb7 {[%clk 0:02:33.4]} 16. Be3 {[%clk 0:02:18.7]} 16... Bf3 {[%clk
0:02:29.4]} 17. Qc2 {[%clk 0:02:03.9]} 17... Qc8 {[%clk 0:02:24.8]} 18. Rxa7
{[%clk 0:02:00.5]} 18... e5 {[%clk 0:02:24.4]} 19. Qd3 {[%clk 0:01:55.6]} 19...
Bb4 {[%clk 0:02:00.9]} 20. Rc1 {[%clk 0:01:51.6]} 20... Qh3 {[%clk 0:01:57.1]}
21. Qf1 {[%clk 0:01:51.3]} 21... Qh5 {[%clk 0:01:56]} 22. h4 {[%clk 0:01:32.3]}
22... Ng4 {[%clk 0:01:45.9]} 23. Qd3 {[%clk 0:01:19.2]} 23... e4 {[%clk
0:01:37.7]} 24. Nxe4 {[%clk 0:01:15.1]} 24... Ne5 {[%clk 0:01:20.8]} 25. Qc4
{[%clk 0:00:01.7]} 25... Nxc4 {[%clk 0:01:17.4]} 26. Rxc4 {[%clk 0:00:01.6]}
26... Bxe4 {[%clk 0:00:58.3]} 27. Rxe4 {[%clk 0:00:02.5]} 27... Bc5 {[%clk
0:00:48.6]} 28. Ra5 {[%clk 0:00:01.7]} 28... Qg6 {[%clk 0:00:47.6]} 29. Rf4
{[%clk 0:00:01.1]} 29... Bxe3 {[%clk 0:00:46.8]} 30. fxe3 {[%clk 0:00:01.5]}
30... Rb8 {[%clk 0:00:46.5]} 31. Raf5 {[%clk 0:00:01.3]} 31... Rxb3 {[%clk
0:00:43.1]} 32. Re5 {[%clk 0:00:01.8]} 32... h5 {[%clk 0:00:40.8]} 33. Rff5
{[%clk 0:00:01.1]} 33... Qxg3+ {[%clk 0:00:40.1]} 34. Kf1 {[%clk 0:00:01.3]}
34... Rxe3 {[%clk 0:00:33.2]} 35. Rxe3 {[%clk 0:00:00.8]} 35... Qxe3 {[%clk
0:00:32.5]} 36. Rxh5 {[%clk 0:00:01.7]} 36... Qf3+ {[%clk 0:00:31.9]} 37. Ke1
{[%clk 0:00:02.1]} 37... Qxh5 {[%clk 0:00:30.5]} 0-1

[Event "Late-Titled-Tuesday-Blitz-May-28-2024"]
[Site "Chess.com"]
[Date "2024.05.28"]
[Round "8"]
[White "Cuchulin"]
[Black "TokChess"]
[Result "1-0"]
[WhiteElo "2250"]
[BlackElo "2481"]
[TimeControl "180+1"]
[EndTime "15:28:15 PDT"]
[Termination "Cuchulin won on time"]

1. d4 {[%clk 0:03:00.9]} 1... c5 {[%clk 0:02:58.6]} 2. c3 {[%clk 0:03:00.2]}
2... cxd4 {[%clk 0:02:58.1]} 3. cxd4 {[%clk 0:03:00]} 3... d5 {[%clk 0:02:59]}
4. Nc3 {[%clk 0:02:59.6]} 4... Nc6 {[%clk 0:02:59.6]} 5. Bf4 {[%clk 0:02:59.8]}
5... a6 {[%clk 0:02:57]} 6. e3 {[%clk 0:02:59.7]} 6... Nf6 {[%clk 0:02:56.5]} 7.
Nf3 {[%clk 0:02:59.8]} 7... Bg4 {[%clk 0:02:53.8]} 8. h3 {[%clk 0:02:59.2]} 8...
Bxf3 {[%clk 0:02:53.3]} 9. Qxf3 {[%clk 0:03:00.1]} 9... e6 {[%clk 0:02:54]} 10.
Bd3 {[%clk 0:02:58.4]} 10... Bd6 {[%clk 0:02:54.3]} 11. Bxd6 {[%clk 0:02:55.4]}
11... Qxd6 {[%clk 0:02:52.8]} 12. O-O {[%clk 0:02:55.9]} 12... O-O {[%clk
0:02:52.1]} 13. a3 {[%clk 0:02:54.4]} 13... Rfc8 {[%clk 0:02:51.4]} 14. Rac1
{[%clk 0:02:52.4]} 14... Na5 {[%clk 0:02:50.2]} 15. Qe2 {[%clk 0:02:16]} 15...
Nc4 {[%clk 0:02:45.8]} 16. Na4 {[%clk 0:02:05.5]} 16... b5 {[%clk 0:02:29.6]}
17. Nc5 {[%clk 0:02:05.2]} 17... Nd7 {[%clk 0:02:30.1]} 18. b4 {[%clk
0:01:50.3]} 18... Nxa3 {[%clk 0:02:27.1]} 19. Ra1 {[%clk 0:01:50]} 19... Nc4
{[%clk 0:02:25.7]} 20. Ra2 {[%clk 0:01:45.3]} 20... Nxc5 {[%clk 0:02:21.4]} 21.
dxc5 {[%clk 0:01:44.6]} 21... Qc6 {[%clk 0:02:10.2]} 22. e4 {[%clk 0:01:41.5]}
22... a5 {[%clk 0:02:05.2]} 23. exd5 {[%clk 0:01:37.9]} 23... exd5 {[%clk
0:02:03.3]} 24. bxa5 {[%clk 0:01:26.6]} 24... Qxc5 {[%clk 0:02:01.3]} 25. a6
{[%clk 0:01:25.8]} 25... Na3 {[%clk 0:01:47]} 26. Qb2 {[%clk 0:01:17]} 26...
Rxa6 {[%clk 0:01:43.1]} 27. Rfa1 {[%clk 0:01:01.5]} 27... Rca8 {[%clk
0:01:34.5]} 28. Bxb5 {[%clk 0:00:56.3]} 28... Ra5 {[%clk 0:01:34.7]} 29. Bd3
{[%clk 0:00:54.2]} 29... g6 {[%clk 0:01:26.5]} 30. Rc1 {[%clk 0:00:44.2]} 30...
Nc4 {[%clk 0:01:14.5]} 31. Bxc4 {[%clk 0:00:43.8]} 31... dxc4 {[%clk 0:01:00.1]}
32. Rxa5 {[%clk 0:00:43]} 32... Rxa5 {[%clk 0:01:00.3]} 33. Qb8+ {[%clk
0:00:42.1]} 33... Kg7 {[%clk 0:00:59]} 34. Qf4 {[%clk 0:00:42]} 34... c3 {[%clk
0:00:44.7]} 35. Qf3 {[%clk 0:00:33.3]} 35... c2 {[%clk 0:00:24.5]} 36. Qb3
{[%clk 0:00:33.3]} 36... Ra3 {[%clk 0:00:05.1]} 37. Qb2+ {[%clk 0:00:32]} 37...
Kg8 {[%clk 0:00:02]} 38. Rxc2 {[%clk 0:00:31.8]} 1-0

[Event "Late-Titled-Tuesday-Blitz-May-28-2024"]
[Site "Chess.com"]
[Date "2024.05.28"]
[Round "8"]
[White "Navyblue1"]
[Black "maurovargas01"]
[Result "1-0"]
[WhiteElo "2229"]
[BlackElo "1928"]
[TimeControl "180+1"]
[EndTime "15:28:15 PDT"]
[Termination "Navyblue1 won by resignation"]

1. d4 {[%clk 0:03:00.9]} 1... Nf6 {[%clk 0:02:57.1]} 2. c4 {[%clk 0:03:01.4]}
2... e6 {[%clk 0:02:57.4]} 3. Nf3 {[%clk 0:02:51.9]} 3... c5 {[%clk 0:02:51.7]}
4. d5 {[%clk 0:02:48.1]} 4... b5 {[%clk 0:02:48.5]} 5. dxe6 {[%clk 0:02:39.4]}
5... fxe6 {[%clk 0:02:47.5]} 6. cxb5 {[%clk 0:02:38.7]} 6... a6 {[%clk
0:02:44.4]} 7. e3 {[%clk 0:02:35.2]} 7... Be7 {[%clk 0:02:39.6]} 8. Nc3 {[%clk
0:02:31.3]} 8... O-O {[%clk 0:02:37]} 9. a4 {[%clk 0:02:15.3]} 9... Qa5 {[%clk
0:02:34.5]} 10. Bd2 {[%clk 0:02:08.2]} 10... axb5 {[%clk 0:02:33.4]} 11. Bxb5
{[%clk 0:02:05.9]} 11... Nc6 {[%clk 0:02:22.6]} 12. O-O {[%clk 0:02:04.3]} 12...
Qc7 {[%clk 0:02:10.5]} 13. e4 {[%clk 0:01:53.4]} 13... Nd4 {[%clk 0:02:00.8]}
14. Be3 {[%clk 0:00:58.9]} 14... Nxb5 {[%clk 0:01:56.9]} 15. axb5 {[%clk
0:00:53.7]} 15... Ng4 {[%clk 0:01:55.7]} 16. h3 {[%clk 0:00:36.9]} 16... Rxf3
{[%clk 0:01:55.1]} 17. hxg4 {[%clk 0:00:35.4]} 17... Rf6 {[%clk 0:01:46.6]} 18.
Rxa8 {[%clk 0:00:27.3]} 18... Bd6 {[%clk 0:01:40.3]} 19. Rxc8+ {[%clk
0:00:17.1]} 19... Qxc8 {[%clk 0:01:38.2]} 20. Qxd6 {[%clk 0:00:17.5]} 20... c4
{[%clk 0:01:23.9]} 21. Rd1 {[%clk 0:00:17.1]} 21... Rf7 {[%clk 0:01:23.3]} 22.
b6 {[%clk 0:00:15.9]} 22... Qb7 {[%clk 0:01:18.9]} 23. Qc7 {[%clk 0:00:15.2]}
23... d5 {[%clk 0:01:00.1]} 24. Qxb7 {[%clk 0:00:14.6]} 24... Rxb7 {[%clk
0:00:59.4]} 25. exd5 {[%clk 0:00:15.1]} 25... exd5 {[%clk 0:00:56.7]} 26. Rxd5
{[%clk 0:00:13.8]} 26... Kf7 {[%clk 0:00:54.2]} 27. g3 {[%clk 0:00:14]} 27... h6
{[%clk 0:00:52.2]} 28. Rc5 {[%clk 0:00:14.3]} 28... Ke6 {[%clk 0:00:50.9]} 29.
Rxc4 {[%clk 0:00:14.6]} 29... g5 {[%clk 0:00:49]} 30. Rc7 {[%clk 0:00:14]} 30...
Rb8 {[%clk 0:00:47.2]} 31. Kg2 {[%clk 0:00:13.3]} 31... Kd6 {[%clk 0:00:44.4]}
32. Rh7 {[%clk 0:00:13.5]} 32... Ke5 {[%clk 0:00:40.6]} 33. Rxh6 {[%clk
0:00:13.8]} 33... Rb7 {[%clk 0:00:36.1]} 34. Rh5 {[%clk 0:00:12.7]} 34... Kf6
{[%clk 0:00:35.3]} 35. Rxg5 {[%clk 0:00:11.5]} 35... Rxb6 {[%clk 0:00:27.4]} 36.
Rf5+ {[%clk 0:00:11.4]} 36... Ke6 {[%clk 0:00:26.4]} 37. Bxb6 {[%clk 0:00:11.5]}
1-0

[Event "Late-Titled-Tuesday-Blitz-May-28-2024"]
[Site "Chess.com"]
[Date "2024.05.28"]
[Round "8"]
[White "RaugintaBulba"]
[Black "Zq1"]
[Result "1-0"]
[WhiteElo "2452"]
[BlackElo "2529"]
[TimeControl "180+1"]
[EndTime "15:28:18 PDT"]
[Termination "RaugintaBulba won on time"]

1. d4 {[%clk 0:03:00.9]} 1... Nf6 {[%clk 0:02:54]} 2. c4 {[%clk 0:03:00.1]} 2...
a6 {[%clk 0:02:52.8]} 3. Nf3 {[%clk 0:02:58.8]} 3... e6 {[%clk 0:02:49.4]} 4. g3
{[%clk 0:02:57]} 4... b5 {[%clk 0:02:47.4]} 5. cxb5 {[%clk 0:02:53.6]} 5... axb5
{[%clk 0:02:46.6]} 6. Bg2 {[%clk 0:02:53.9]} 6... Bb7 {[%clk 0:02:46.7]} 7. O-O
{[%clk 0:02:53.7]} 7... Na6 {[%clk 0:02:46.4]} 8. Nc3 {[%clk 0:02:54.1]} 8... b4
{[%clk 0:02:45.8]} 9. Na4 {[%clk 0:02:53.2]} 9... Be7 {[%clk 0:02:42]} 10. b3
{[%clk 0:02:53.3]} 10... O-O {[%clk 0:02:41]} 11. Bb2 {[%clk 0:02:49.9]} 11...
d5 {[%clk 0:02:30.5]} 12. Ne5 {[%clk 0:02:49.3]} 12... c5 {[%clk 0:02:29.5]} 13.
dxc5 {[%clk 0:02:49.1]} 13... Nxc5 {[%clk 0:02:28.9]} 14. Nxc5 {[%clk
0:02:48.5]} 14... Bxc5 {[%clk 0:02:28.3]} 15. Nd3 {[%clk 0:02:47.9]} 15... Be7
{[%clk 0:02:25.6]} 16. Qd2 {[%clk 0:02:48.1]} 16... Qb6 {[%clk 0:02:24.2]} 17.
Rfc1 {[%clk 0:02:41.8]} 17... h6 {[%clk 0:02:19.5]} 18. Be5 {[%clk 0:02:39.4]}
18... Ne4 {[%clk 0:02:14.5]} 19. Qb2 {[%clk 0:02:32.2]} 19... Nc3 {[%clk
0:02:05.9]} 20. Nxb4 {[%clk 0:02:11.9]} 20... Nxe2+ {[%clk 0:01:59.7]} 21. Qxe2
{[%clk 0:02:12.8]} 21... Qxb4 {[%clk 0:01:54.8]} 22. a3 {[%clk 0:02:03.9]} 22...
Qb6 {[%clk 0:01:49.9]} 23. Qb2 {[%clk 0:01:43.5]} 23... f6 {[%clk 0:01:49.5]}
24. Bd4 {[%clk 0:01:42.1]} 24... Qd8 {[%clk 0:01:38.2]} 25. b4 {[%clk
0:01:39.6]} 25... Rc8 {[%clk 0:01:16.3]} 26. a4 {[%clk 0:01:17.5]} 26... e5
{[%clk 0:01:13.1]} 27. Be3 {[%clk 0:01:08.2]} 27... Qd7 {[%clk 0:01:03.4]} 28.
Qb3 {[%clk 0:01:05.2]} 28... Kh8 {[%clk 0:01:01.4]} 29. b5 {[%clk 0:01:02.9]}
29... d4 {[%clk 0:00:59.9]} 30. Bxb7 {[%clk 0:01:01.5]} 30... Qxb7 {[%clk
0:00:57.2]} 31. Bd2 {[%clk 0:01:01.8]} 31... e4 {[%clk 0:00:50.8]} 32. a5 {[%clk
0:01:02.3]} 32... Bc5 {[%clk 0:00:42.6]} 33. a6 {[%clk 0:00:57.8]} 33... Qb6
{[%clk 0:00:39.2]} 34. Ba5 {[%clk 0:00:56.9]} 34... Qa7 {[%clk 0:00:32.1]} 35.
Bb4 {[%clk 0:00:36.6]} 35... e3 {[%clk 0:00:17.9]} 36. fxe3 {[%clk 0:00:37]}
36... dxe3 {[%clk 0:00:17.3]} 37. Bxc5 {[%clk 0:00:35.8]} 37... Rxc5 {[%clk
0:00:17.3]} 38. Rxc5 {[%clk 0:00:33.7]} 38... Qxc5 {[%clk 0:00:16.5]} 39. Qa3
{[%clk 0:00:33.8]} 39... Qc8 {[%clk 0:00:08.4]} 40. Qxe3 {[%clk 0:00:33.1]}
40... Re8 {[%clk 0:00:07.7]} 41. Qf2 {[%clk 0:00:32.2]} 1-0

[Event "Late-Titled-Tuesday-Blitz-May-28-2024"]
[Site "Chess.com"]
[Date "2024.05.28"]
[Round "8"]
[White "kirillshevchenko"]
[Black "Polish_fighter3000"]
[Result "0-1"]
[WhiteElo "2903"]
[BlackElo "3114"]
[TimeControl "180+1"]
[EndTime "15:28:22 PDT"]
[Termination "Polish_fighter3000 won by resignation"]

1. e4 {[%clk 0:02:58.7]} 1... c6 {[%clk 0:03:00.3]} 2. d4 {[%clk 0:02:57.6]}
2... d5 {[%clk 0:03:01.2]} 3. exd5 {[%clk 0:02:58.4]} 3... cxd5 {[%clk
0:03:01.4]} 4. c4 {[%clk 0:02:59.1]} 4... Nf6 {[%clk 0:03:00.8]} 5. Nc3 {[%clk
0:02:59.8]} 5... Nc6 {[%clk 0:02:59.9]} 6. Nf3 {[%clk 0:02:59.7]} 6... Bg4
{[%clk 0:02:58.1]} 7. cxd5 {[%clk 0:02:59.6]} 7... Nxd5 {[%clk 0:02:59]} 8. Qb3
{[%clk 0:02:59.9]} 8... Bxf3 {[%clk 0:02:52.9]} 9. gxf3 {[%clk 0:03:00.2]} 9...
Nb6 {[%clk 0:02:42]} 10. d5 {[%clk 0:02:59]} 10... Nd4 {[%clk 0:02:42.1]} 11.
Bb5+ {[%clk 0:02:56.6]} 11... Nxb5 {[%clk 0:02:41.6]} 12. Qxb5+ {[%clk
0:02:56.7]} 12... Qd7 {[%clk 0:02:42.2]} 13. O-O {[%clk 0:02:12.9]} 13... Qxb5
{[%clk 0:02:29.6]} 14. Nxb5 {[%clk 0:02:12]} 14... Nxd5 {[%clk 0:02:29.2]} 15.
Be3 {[%clk 0:01:34]} 15... e6 {[%clk 0:02:01.6]} 16. Bxa7 {[%clk 0:01:33.2]}
16... Be7 {[%clk 0:01:58.9]} 17. Rac1 {[%clk 0:01:29.9]} 17... O-O {[%clk
0:01:58.1]} 18. Rc4 {[%clk 0:01:20.8]} 18... b6 {[%clk 0:01:40]} 19. Rfc1 {[%clk
0:01:17.7]} 19... g5 {[%clk 0:01:35.8]} 20. a3 {[%clk 0:01:16.8]} 20... Bf6
{[%clk 0:01:18.4]} 21. b4 {[%clk 0:01:09.9]} 21... Bb2 {[%clk 0:01:12.1]} 22.
Rb1 {[%clk 0:00:57.1]} 22... Bxa3 {[%clk 0:01:12.4]} 23. Rb3 {[%clk 0:00:57]}
23... Rfc8 {[%clk 0:00:51.2]} 24. Rxc8+ {[%clk 0:00:24]} 24... Rxc8 {[%clk
0:00:52.1]} 25. h4 {[%clk 0:00:23.9]} 25... Bc1 {[%clk 0:00:51]} 26. hxg5 {[%clk
0:00:22]} 26... Bxg5 {[%clk 0:00:51.9]} 27. Rb1 {[%clk 0:00:21.7]} 27... Be7
{[%clk 0:00:45.3]} 28. Nd4 {[%clk 0:00:20.5]} 28... Rc4 {[%clk 0:00:44.1]} 29.
Rd1 {[%clk 0:00:15.1]} 29... Bxb4 {[%clk 0:00:33.9]} 30. Kg2 {[%clk 0:00:14.1]}
30... Bd6 {[%clk 0:00:26.5]} 31. Nb5 {[%clk 0:00:12.1]} 31... Be5 {[%clk
0:00:25.5]} 32. Re1 {[%clk 0:00:09.4]} 32... f6 {[%clk 0:00:25.6]} 33. Re4
{[%clk 0:00:08.6]} 33... Rc5 {[%clk 0:00:20.6]} 34. Rg4+ {[%clk 0:00:06.5]}
34... Kf7 {[%clk 0:00:19.1]} 35. Nd4 {[%clk 0:00:06.2]} 35... h5 {[%clk
0:00:18.3]} 36. Rh4 {[%clk 0:00:06.3]} 36... Rc4 {[%clk 0:00:18]} 0-1

[Event "Late-Titled-Tuesday-Blitz-May-28-2024"]
[Site "Chess.com"]
[Date "2024.05.28"]
[Round "8"]
[White "simaopdias"]
[Black "emeli_chess"]
[Result "0-1"]
[WhiteElo "2247"]
[BlackElo "2414"]
[TimeControl "180+1"]
[EndTime "15:28:23 PDT"]
[Termination "emeli_chess won by checkmate"]

1. e4 {[%clk 0:03:00.1]} 1... c5 {[%clk 0:02:59.3]} 2. Nf3 {[%clk 0:03:00.6]}
2... d6 {[%clk 0:02:59.1]} 3. d4 {[%clk 0:03:01.5]} 3... cxd4 {[%clk 0:02:59.5]}
4. Nxd4 {[%clk 0:03:02.4]} 4... Nf6 {[%clk 0:02:59.4]} 5. Nc3 {[%clk 0:03:03.1]}
5... a6 {[%clk 0:03:00]} 6. Be2 {[%clk 0:03:03.7]} 6... e6 {[%clk 0:02:59.6]} 7.
Bg5 {[%clk 0:03:02.9]} 7... Be7 {[%clk 0:02:59.5]} 8. f4 {[%clk 0:03:03.2]} 8...
O-O {[%clk 0:02:58.7]} 9. Bf3 {[%clk 0:03:01.5]} 9... Qc7 {[%clk 0:02:53.3]} 10.
Qd2 {[%clk 0:03:01.3]} 10... Nc6 {[%clk 0:02:50.1]} 11. O-O-O {[%clk 0:03:00.6]}
11... Nxd4 {[%clk 0:02:40.9]} 12. Qxd4 {[%clk 0:02:58.8]} 12... Rb8 {[%clk
0:02:10.6]} 13. e5 {[%clk 0:02:51.6]} 13... dxe5 {[%clk 0:02:07]} 14. fxe5
{[%clk 0:02:52.5]} 14... Ne8 {[%clk 0:02:04.8]} 15. h4 {[%clk 0:02:50.2]} 15...
b5 {[%clk 0:01:50]} 16. Ne4 {[%clk 0:02:39.7]} 16... Bb7 {[%clk 0:01:35.3]} 17.
Nf6+ {[%clk 0:02:29.7]} 17... Kh8 {[%clk 0:01:07.2]} 18. Nd7 {[%clk 0:02:08.8]}
18... Rc8 {[%clk 0:00:57.1]} 19. Qd3 {[%clk 0:01:55.7]} 19... Bb4 {[%clk
0:00:21.5]} 20. a3 {[%clk 0:01:41.5]} 20... Bc5 {[%clk 0:00:15.1]} 21. Nxf8
{[%clk 0:01:08.7]} 21... Bxf8 {[%clk 0:00:14.5]} 22. Bxb7 {[%clk 0:00:58.4]}
22... Qxb7 {[%clk 0:00:14.4]} 23. h5 {[%clk 0:00:54.9]} 23... Nc7 {[%clk
0:00:11.3]} 24. h6 {[%clk 0:00:53.1]} 24... g6 {[%clk 0:00:10.1]} 25. Bf6+
{[%clk 0:00:47.6]} 25... Kg8 {[%clk 0:00:10.2]} 26. Qd8 {[%clk 0:00:43]} 26...
Nd5 {[%clk 0:00:09.3]} 27. Qa5 {[%clk 0:00:33.8]} 27... Qc6 {[%clk 0:00:08.3]}
28. Qd2 {[%clk 0:00:32.8]} 28... a5 {[%clk 0:00:05.4]} 29. Kb1 {[%clk
0:00:32.3]} 29... b4 {[%clk 0:00:05.8]} 30. axb4 {[%clk 0:00:31.1]} 30... axb4
{[%clk 0:00:06.7]} 31. Bg7 {[%clk 0:00:28.5]} 31... Ra8 {[%clk 0:00:06]} 32. Kc1
{[%clk 0:00:16.8]} 32... Ra1# {[%clk 0:00:05]} 0-1

[Event "Late-Titled-Tuesday-Blitz-May-28-2024"]
[Site "Chess.com"]
[Date "2024.05.28"]
[Round "8"]
[White "NeverGiveUppp"]
[Black "RandomNoob04"]
[Result "0-1"]
[WhiteElo "2606"]
[BlackElo "2783"]
[TimeControl "180+1"]
[EndTime "15:28:28 PDT"]
[Termination "RandomNoob04 won on time"]

1. e4 {[%clk 0:03:00.9]} 1... d5 {[%clk 0:03:00.5]} 2. exd5 {[%clk 0:03:00.6]}
2... Qxd5 {[%clk 0:03:01.4]} 3. Nc3 {[%clk 0:03:00.1]} 3... Qa5 {[%clk
0:03:02.1]} 4. b4 {[%clk 0:03:00.2]} 4... Qxb4 {[%clk 0:03:02.2]} 5. Rb1 {[%clk
0:02:59.9]} 5... Qd6 {[%clk 0:03:02.7]} 6. Nf3 {[%clk 0:02:57.9]} 6... Nf6
{[%clk 0:03:03.2]} 7. d4 {[%clk 0:02:56.8]} 7... g6 {[%clk 0:03:03.4]} 8. Ne5
{[%clk 0:02:54.4]} 8... Bg7 {[%clk 0:03:00.4]} 9. Bf4 {[%clk 0:02:21.1]} 9...
Qd8 {[%clk 0:02:56.8]} 10. Bc4 {[%clk 0:02:17.4]} 10... O-O {[%clk 0:02:55.2]}
11. O-O {[%clk 0:02:17]} 11... c6 {[%clk 0:02:48.9]} 12. Re1 {[%clk 0:02:15.6]}
12... Nbd7 {[%clk 0:02:46]} 13. Qe2 {[%clk 0:02:09]} 13... Nb6 {[%clk
0:02:44.2]} 14. Bb3 {[%clk 0:01:48.5]} 14... Nbd5 {[%clk 0:02:38.8]} 15. Nxd5
{[%clk 0:01:47.2]} 15... Nxd5 {[%clk 0:02:39.7]} 16. Bd2 {[%clk 0:01:45.1]}
16... Be6 {[%clk 0:02:31.9]} 17. c4 {[%clk 0:01:44.3]} 17... Nb6 {[%clk
0:02:20.7]} 18. Bc3 {[%clk 0:01:38.6]} 18... Qc7 {[%clk 0:02:18.2]} 19. a4
{[%clk 0:01:32.8]} 19... Rfd8 {[%clk 0:02:10.5]} 20. a5 {[%clk 0:01:30.6]} 20...
Nd7 {[%clk 0:02:11]} 21. Nf3 {[%clk 0:01:03.4]} 21... Nf6 {[%clk 0:01:59.4]} 22.
Rbd1 {[%clk 0:01:02.9]} 22... Re8 {[%clk 0:01:51.6]} 23. Qb2 {[%clk 0:01:02]}
23... Bg4 {[%clk 0:01:51.1]} 24. Ne5 {[%clk 0:01:01.7]} 24... Bxd1 {[%clk
0:01:50.3]} 25. Rxd1 {[%clk 0:01:02.4]} 25... Nd7 {[%clk 0:01:45.6]} 26. Nf3
{[%clk 0:00:53.8]} 26... Rad8 {[%clk 0:01:46.1]} 27. Qe2 {[%clk 0:00:42]} 27...
c5 {[%clk 0:01:41.6]} 28. Ba4 {[%clk 0:00:38.4]} 28... cxd4 {[%clk 0:01:38.3]}
29. Nxd4 {[%clk 0:00:37.7]} 29... a6 {[%clk 0:01:14]} 30. h4 {[%clk 0:00:32.5]}
30... h5 {[%clk 0:01:13]} 31. Ne6 {[%clk 0:00:32.1]} 31... fxe6 {[%clk
0:00:34.1]} 32. Qxe6+ {[%clk 0:00:33]} 32... Kh7 {[%clk 0:00:34.1]} 33. Bxg7
{[%clk 0:00:14.5]} 33... Kxg7 {[%clk 0:00:35]} 34. Rxd7 {[%clk 0:00:13.2]} 34...
Rxd7 {[%clk 0:00:34.8]} 35. Bxd7 {[%clk 0:00:14]} 35... Rf8 {[%clk 0:00:33.3]}
36. Ba4 {[%clk 0:00:06.5]} 36... Qxa5 {[%clk 0:00:25.8]} 37. Bc2 {[%clk
0:00:04.3]} 37... Qa1+ {[%clk 0:00:20.9]} 38. Kh2 {[%clk 0:00:02.3]} 38... Qf6
{[%clk 0:00:21.8]} 0-1

[Event "Late-Titled-Tuesday-Blitz-May-28-2024"]
[Site "Chess.com"]
[Date "2024.05.28"]
[Round "8"]
[White "LiemLe"]
[Black "Jahonas"]
[Result "1-0"]
[WhiteElo "3015"]
[BlackElo "2467"]
[TimeControl "180+1"]
[EndTime "15:28:29 PDT"]
[Termination "LiemLe won by resignation"]

1. c4 {[%clk 0:03:00.9]} 1... Nf6 {[%clk 0:02:59.5]} 2. g3 {[%clk 0:03:00.7]}
2... e6 {[%clk 0:02:59.1]} 3. Bg2 {[%clk 0:03:01.1]} 3... d5 {[%clk 0:02:59.4]}
4. Nf3 {[%clk 0:03:01.8]} 4... Be7 {[%clk 0:02:59.3]} 5. O-O {[%clk 0:03:01.9]}
5... O-O {[%clk 0:02:59.5]} 6. b3 {[%clk 0:03:02.4]} 6... c6 {[%clk 0:02:56.8]}
7. Bb2 {[%clk 0:03:02.1]} 7... Nbd7 {[%clk 0:02:54.8]} 8. Nc3 {[%clk 0:02:59.3]}
8... b6 {[%clk 0:02:53.7]} 9. Qc2 {[%clk 0:02:50.8]} 9... Bb7 {[%clk 0:02:52.9]}
10. e4 {[%clk 0:02:49.5]} 10... dxc4 {[%clk 0:02:49.3]} 11. bxc4 {[%clk
0:02:49.1]} 11... c5 {[%clk 0:02:40]} 12. Rad1 {[%clk 0:02:43.1]} 12... Qc8
{[%clk 0:02:39.3]} 13. d3 {[%clk 0:02:40.2]} 13... Rd8 {[%clk 0:02:38.3]} 14.
Ne1 {[%clk 0:02:32.5]} 14... Ne5 {[%clk 0:02:29.6]} 15. Ne2 {[%clk 0:02:30.4]}
15... Nc6 {[%clk 0:02:27.6]} 16. f4 {[%clk 0:02:30.6]} 16... Ne8 {[%clk
0:02:24.7]} 17. g4 {[%clk 0:02:27.9]} 17... Bf6 {[%clk 0:02:23.3]} 18. e5 {[%clk
0:02:16.2]} 18... Be7 {[%clk 0:02:18.7]} 19. a3 {[%clk 0:02:13.2]} 19... Nd4
{[%clk 0:02:03]} 20. Nxd4 {[%clk 0:02:00.1]} 20... cxd4 {[%clk 0:01:56.5]} 21.
Qf2 {[%clk 0:01:47.5]} 21... Bc5 {[%clk 0:01:53.9]} 22. f5 {[%clk 0:01:46.4]}
22... exf5 {[%clk 0:01:52]} 23. gxf5 {[%clk 0:01:45.7]} 23... Qc7 {[%clk
0:01:50.2]} 24. Bxb7 {[%clk 0:01:42.1]} 24... Qxb7 {[%clk 0:01:49.6]} 25. Nf3
{[%clk 0:01:37.4]} 25... Qd7 {[%clk 0:01:36.9]} 26. Ng5 {[%clk 0:01:31.9]} 26...
Nc7 {[%clk 0:01:31.7]} 27. Qh4 {[%clk 0:01:24.5]} 27... h6 {[%clk 0:01:31.3]}
28. Ne4 {[%clk 0:01:25.1]} 28... Bf8 {[%clk 0:01:27.2]} 29. Kh1 {[%clk
0:01:11.7]} 29... Qe7 {[%clk 0:01:22.4]} 30. Qg3 {[%clk 0:01:11.4]} 30... Kh8
{[%clk 0:01:09.6]} 31. Rde1 {[%clk 0:01:11.5]} 31... Qe8 {[%clk 0:01:06.1]} 32.
Rf3 {[%clk 0:01:06.6]} 32... Qc6 {[%clk 0:01:02.3]} 33. Rg1 {[%clk 0:01:04.1]}
33... b5 {[%clk 0:00:41]} 34. c5 {[%clk 0:01:00.6]} 34... Nd5 {[%clk 0:00:38.5]}
35. Bxd4 {[%clk 0:00:59.1]} 35... a5 {[%clk 0:00:30.7]} 36. e6 {[%clk 0:00:55]}
36... f6 {[%clk 0:00:28.9]} 37. Nxf6 {[%clk 0:00:52.4]} 37... Nxf6 {[%clk
0:00:28]} 38. Bxf6 {[%clk 0:00:52.6]} 38... Ra7 {[%clk 0:00:27.4]} 39. Bxd8
{[%clk 0:00:52.4]} 39... Bxc5 {[%clk 0:00:24.2]} 40. Re1 {[%clk 0:00:40.2]}
40... Be7 {[%clk 0:00:21.5]} 41. Bxe7 {[%clk 0:00:39.1]} 41... Rxe7 {[%clk
0:00:21.2]} 42. Re4 {[%clk 0:00:35.5]} 42... Qc1+ {[%clk 0:00:20.2]} 43. Kg2
{[%clk 0:00:35.4]} 43... Qxa3 {[%clk 0:00:20.4]} 44. f6 {[%clk 0:00:29.9]} 44...
gxf6 {[%clk 0:00:20.1]} 45. Rxf6 {[%clk 0:00:28.3]} 45... Rg7 {[%clk 0:00:17.9]}
46. Rxh6+ {[%clk 0:00:25.6]} 46... Kg8 {[%clk 0:00:16.9]} 47. Rg6 {[%clk
0:00:23.7]} 47... Qb2+ {[%clk 0:00:15.2]} 48. Kh3 {[%clk 0:00:23.4]} 1-0